bitfinex-derivatives/quotes_BTCF0:USTF0_20250811
["timestamp","ask_amount","ask_price","bid_price","bid_amount"]
[1754902800418,1.13109858,121670.0,121660.0,1.68824484]
[1754902800621,0.29934268,121670.0,121660.0,2.01659316]
[1754902800819,1.04890268,121670.0,121660.0,2.01659316]
[1754902801120,1.13109848,121670.0,121660.0,1.68824484]
[1754902802423,1.10109848,121670.0,121660.0,2.01659316]
[1754902802625,1.10109848,121670.0,121660.0,2.02659316]
[1754902802825,1.10109848,121670.0,121660.0,1.69824484]
[1754902803525,1.10109848,121670.0,121660.0,1.69924484]
[1754902804027,1.10109848,121670.0,121660.0,1.69824484]
[1754902804221,1.10109848,121670.0,121660.0,1.69924484]
[1754902804422,1.09109848,121670.0,121660.0,1.69924484]
[1754902806828,1.01109848,121670.0,121660.0,1.69924484]
[1754902807029,1.01109848,121670.0,121660.0,1.99408334]
[1754902807325,1.01109848,121670.0,121660.0,2.35488334]
[1754902809128,1.01109848,121670.0,121660.0,2.06004484]
[1754902814632,0.95109848,121670.0,121660.0,2.06004484]
[1754902816127,0.11934268,121670.0,121660.0,2.38839316]
[1754902816437,0.0001,121680.0,121670.0,0.0821958]
[1754902816627,0.2466609,121690.0,121680.0,0.0821891]
[1754902816930,0.9960009,121690.0,121680.0,2.27168208]
[1754902817133,0.9960009,121690.0,121680.0,1.85387498]
[1754902817331,0.2465609,121690.0,121680.0,2.35387498]
[1754902817626,1.03785884,121690.0,121680.0,2.35387498]
[1754902817831,1.10456594,121690.0,121680.0,2.35387498]
[1754902818032,1.10556594,121690.0,121680.0,2.35387498]
[1754902818233,0.35612594,121690.0,121680.0,2.35387498]
[1754902818529,0.68447426,121690.0,121680.0,1.25418924]
[1754902818732,1.43391426,121690.0,121680.0,1.25418924]
[1754902818934,1.43391426,121690.0,121680.0,1.58253756]
[1754902820133,1.10556594,121690.0,121680.0,1.25418924]
[1754902821630,1.10548594,121690.0,121680.0,1.25418924]
[1754902821830,0.35612594,121690.0,121680.0,1.25418924]
[1754902822038,1.10548594,121690.0,121680.0,1.25418924]
[1754902824346,0.35612594,121690.0,121680.0,1.25418924]
[1754902824639,1.10548594,121690.0,121680.0,1.25418924]
[1754902825940,1.10548594,121690.0,121680.0,1.54596349]
[1754902826133,1.10548594,121690.0,121680.0,1.90676349]
[1754902828944,1.10548594,121690.0,121680.0,1.90996092]
[1754902830133,0.99548594,121690.0,121680.0,1.90996092]
[1754902830430,1.06767504,121690.0,121680.0,1.90996092]
[1754902830635,1.06763504,121690.0,121680.0,1.90996092]
[1754902830835,1.06763504,121690.0,121680.0,1.90676349]
[1754902833640,0.31831504,121690.0,121680.0,1.90676349]
[1754902833943,1.06759504,121690.0,121680.0,1.90676349]
[1754902834134,1.06759504,121690.0,121680.0,1.61498924]
[1754902834334,1.06759504,121690.0,121680.0,1.90676349]
[1754902835245,0.31831504,121690.0,121680.0,1.90676349]
[1754902835446,1.06759504,121690.0,121680.0,1.90676349]
[1754902839444,1.06759504,121690.0,121680.0,2.20182555]
[1754902839950,1.05759504,121690.0,121680.0,2.20182555]
[1754902841349,1.05759504,121690.0,121680.0,1.90676349]
[1754902843352,1.05759504,121690.0,121680.0,2.20182555]
[1754902845446,1.05759504,121690.0,121680.0,1.90676349]
[1754902845855,0.97759504,121690.0,121680.0,1.90676349]
[1754902846054,1.05978414,121690.0,121680.0,1.90676349]
[1754902846255,1.10541234,121690.0,121680.0,2.27132648]
[1754902846861,0.0821823,121690.0,121680.0,2.35351558]
[1754902847354,0.8313423,121690.0,121680.0,2.35351558]
[1754902848157,0.8313423,121690.0,121680.0,2.28046468]
[1754902848356,0.8715993,121690.0,121680.0,2.28046468]
[1754902848656,0.8715993,121690.0,121680.0,2.28146468]
[1754902848849,0.8715993,121690.0,121680.0,2.57675035]
[1754902850357,0.93836566,121690.0,121680.0,2.57675035]
[1754902850858,0.93836566,121690.0,121680.0,2.28146468]
[1754902851355,0.93836566,121690.0,121680.0,1.98982151]
[1754902851649,0.93832566,121690.0,121680.0,1.98982151]
[1754902851857,0.93832566,121690.0,121680.0,2.2850764]
[1754902853955,0.93832566,121690.0,121680.0,1.98982151]
[1754902854657,0.93832566,121690.0,121680.0,1.90763241]
[1754902854860,0.93828566,121690.0,121680.0,1.90763241]
[1754902855158,0.93828566,121690.0,121680.0,1.61598924]
[1754902856355,1.22992883,121690.0,121680.0,1.25518924]
[1754902857760,1.22992883,121690.0,121680.0,1.25418924]
[1754902859758,1.22992883,121690.0,121680.0,1.49038848]
[1754902860851,1.22992883,121690.0,121680.0,1.48634564]
[1754902863357,1.22992883,121690.0,121680.0,1.47507641]
[1754902863855,1.22992883,121690.0,121680.0,1.23887717]
[1754902864060,1.59072883,121690.0,121680.0,1.23887717]
[1754902865964,1.59072883,121690.0,121680.0,1.53413206]
[1754902867656,1.29908566,121690.0,121680.0,1.53413206]
[1754902867962,1.59072883,121690.0,121680.0,1.23887717]
[1754902868157,1.29908566,121690.0,121680.0,1.23887717]
[1754902868364,1.59072883,121690.0,121680.0,1.23887717]
[1754902868657,0.84164883,121690.0,121680.0,1.23887717]
[1754902868858,1.29904566,121690.0,121680.0,1.23887717]
[1754902870462,1.59068883,121690.0,121680.0,1.23887717]
[1754902879170,1.59068883,121690.0,121680.0,1.47489626]
[1754902880270,1.62733464,121690.0,121680.0,1.47489626]
[1754902881373,1.62733464,121690.0,121680.0,1.23887717]
[1754902883358,1.62733464,121690.0,121680.0,1.47489626]
[1754902884561,1.29904566,121690.0,121680.0,1.47489626]
[1754902884766,1.62733464,121690.0,121680.0,1.47489626]
[1754902885373,1.62733464,121690.0,121680.0,1.23887717]
[1754902887474,0.51749464,121690.0,121680.0,1.56716615]
[1754902887672,1.26637464,121690.0,121680.0,1.56716615]
[1754902888376,1.62717464,121690.0,121680.0,1.56716615]
[1754902890872,1.26637464,121690.0,121680.0,1.56716615]
[1754902891271,0.51749464,121690.0,121680.0,1.56716615]
[1754902891477,1.62713464,121690.0,121680.0,1.56716615]
[1754902893075,1.62713464,121690.0,121680.0,1.23887717]
[1754902895080,1.62713464,121690.0,121680.0,1.56716615]
[1754902895780,1.62709464,121690.0,121680.0,1.56716615]
[1754902895976,1.29880566,121690.0,121680.0,1.56716615]
[1754902896183,1.62709464,121690.0,121680.0,1.56716615]
[1754902896383,1.62709464,121690.0,121680.0,1.86242104]
[1754902896784,1.62709464,121690.0,121680.0,1.53413206]
[1754902896984,1.62709464,121690.0,121680.0,1.86242104]
[1754902898386,1.62705464,121690.0,121680.0,1.56716615]
[1754902900283,1.62705464,121690.0,121680.0,1.86242104]
[1754902902187,1.29876566,121690.0,121680.0,1.86242104]
[1754902902385,1.62705464,121690.0,121680.0,1.86242104]
[1754902904787,1.62697464,121690.0,121680.0,1.86242104]
[1754902906388,1.62697464,121690.0,121680.0,1.56716615]
[1754902907192,1.62697464,121690.0,121680.0,1.23887717]
[1754902907593,1.62697464,121690.0,121680.0,1.56716615]
[1754902907887,1.62697464,121690.0,121680.0,1.23887717]
[1754902908594,2.76293464,121690.0,121680.0,1.23887717]
[1754902909287,2.40213464,121690.0,121680.0,1.23887717]
[1754902909495,2.76293464,121690.0,121680.0,1.23887717]
[1754902910293,2.76293464,121690.0,121680.0,1.53413206]
[1754902913296,2.40213464,121690.0,121680.0,1.53413206]
[1754902913787,2.76293464,121690.0,121680.0,1.53413206]
[1754902913982,2.40213464,121690.0,121680.0,1.53413206]
[1754902914190,2.76293464,121690.0,121680.0,1.53413206]
[1754902915298,2.40213464,121690.0,121680.0,1.53413206]
[1754902916302,2.40213464,121690.0,121680.0,1.23887717]
[1754902917303,2.40213464,121690.0,121680.0,1.59330541]
[1754902917600,2.40213464,121690.0,121680.0,1.92159439]
[1754902918099,1.65345464,121690.0,121680.0,1.92159439]
[1754902918304,2.40201464,121690.0,121680.0,1.92159439]
[1754902918503,2.07372566,121690.0,121680.0,1.92159439]
[1754902918702,2.40201464,121690.0,121680.0,1.92159439]
[1754902918905,2.07372566,121690.0,121680.0,1.92159439]
[1754902919102,2.40201464,121690.0,121680.0,1.92159439]
[1754902919298,2.07372566,121690.0,121680.0,1.92159439]
[1754902919498,2.40201464,121690.0,121680.0,1.92159439]
[1754902920098,2.40201464,121690.0,121680.0,1.59330541]
[1754902920299,2.40201464,121690.0,121680.0,1.92159439]
[1754902920496,2.07368566,121690.0,121680.0,2.90617224]
[1754902920704,1.3047307,121690.0,121680.0,2.90617224]
[1754902921001,2.0532107,121690.0,121680.0,2.90617224]
[1754902921507,2.0532107,121690.0,121680.0,2.551744]
[1754902921692,1.3047307,121690.0,121680.0,2.551744]
[1754902922005,2.0532107,121690.0,121680.0,2.551744]
[1754902922402,2.0532107,121690.0,121680.0,2.25625513]
[1754902925304,2.0432107,121690.0,121680.0,2.25625513]
[1754902925500,1.2947307,121690.0,121680.0,2.25625513]
[1754902925699,2.0431707,121690.0,121680.0,2.25625513]
[1754902925893,2.07360566,121690.0,121680.0,2.25625513]
[1754902926097,2.06360566,121690.0,121680.0,2.25625513]
[1754902926811,2.06360566,121690.0,121680.0,1.92796615]
[1754902928001,2.06360566,121690.0,121680.0,2.25625513]
[1754902928809,2.06356566,121690.0,121680.0,2.25625513]
[1754902929411,2.06356566,121690.0,121680.0,2.61068337]
[1754902929609,2.06356566,121690.0,121680.0,1.95410541]
[1754902929814,2.05356566,121690.0,121680.0,2.28239439]
[1754902930612,2.05356566,121690.0,121680.0,2.57758943]
[1754902930915,2.00356566,121690.0,121680.0,2.57758943]
[1754902931505,2.00356566,121690.0,121680.0,2.22316119]
[1754902932714,2.00356566,121690.0,121680.0,1.92796615]
[1754902933517,2.00356566,121690.0,121680.0,2.28239439]
[1754902933716,1.58345464,121690.0,121680.0,1.95410541]
[1754902933917,2.33181464,121690.0,121680.0,2.28239439]
[1754902934416,1.58345464,121690.0,121680.0,2.28239439]
[1754902934620,2.33181464,121690.0,121680.0,2.28239439]
[1754902934810,2.33181464,121690.0,121680.0,1.95410541]
[1754902935014,1.58345464,121690.0,121680.0,2.28239439]
[1754902935315,2.33181464,121690.0,121680.0,2.28239439]
[1754902935618,2.37390129,121690.0,121680.0,1.92796615]
[1754902936020,2.04561231,121690.0,121680.0,1.92796615]
[1754902937220,2.04561231,121690.0,121680.0,2.22315926]
[1754902939321,2.04561231,121690.0,121680.0,1.92796615]
[1754902939622,1.29725231,121690.0,121680.0,1.92796615]
[1754902939919,2.04557231,121690.0,121680.0,1.92796615]
[1754902940124,2.04553231,121690.0,121680.0,1.92796615]
[1754902940423,2.37382129,121690.0,121680.0,2.22317256]
[1754902941917,2.04553231,121690.0,121680.0,2.22317256]
[1754902944227,2.04553231,121690.0,121680.0,2.55146154]
[1754902947022,2.04553231,121690.0,121680.0,2.22317256]
[1754902947623,1.29725231,121690.0,121680.0,2.22317256]
[1754902947924,2.37378129,121690.0,121680.0,2.22317256]
[1754902948325,2.37378129,121690.0,121680.0,1.92796615]
[1754902949027,2.24378129,121690.0,121680.0,1.92796615]
[1754902949326,2.30912765,121690.0,121680.0,1.92796615]
[1754902950526,2.30912765,121690.0,121680.0,2.22333942]
[1754902954228,1.98083867,121690.0,121680.0,2.22333942]
[1754902954735,1.98083867,121690.0,121680.0,1.92796615]
[1754902955229,1.92083867,121690.0,121680.0,1.92796615]
[1754902957434,1.92083867,121690.0,121680.0,1.56716615]
[1754902957638,1.92083867,121690.0,121680.0,1.92796615]
[1754902958228,1.92083867,121690.0,121680.0,1.59967717]
[1754902958430,1.92083867,121690.0,121680.0,1.92796615]
[1754902959240,2.24912765,121690.0,121680.0,1.92796615]
[1754902959539,2.24912765,121690.0,121680.0,1.59967717]
[1754902959930,2.24912765,121690.0,121680.0,1.92796615]
[1754902961540,2.24912765,121690.0,121680.0,1.59967717]
[1754902961738,2.24912765,121690.0,121680.0,1.92796615]
[1754902962335,2.19912765,121690.0,121680.0,1.92796615]
[1754902963835,2.19912765,121690.0,121680.0,2.28239439]
[1754902965837,2.19912765,121690.0,121680.0,1.92796615]
[1754902967840,2.19912765,121690.0,121680.0,1.59967717]
[1754902968142,2.19912765,121690.0,121680.0,1.92796615]
[1754902968334,2.19912765,121690.0,121680.0,1.59967717]
[1754902968535,2.19912765,121690.0,121680.0,1.92796615]
[1754902969741,2.19912765,121690.0,121680.0,1.59967717]
[1754902969940,2.19912765,121690.0,121680.0,1.92796615]
[1754902971937,2.19892765,121690.0,121680.0,1.92796615]
[1754902972948,1.87063867,121690.0,121680.0,1.92796615]
[1754902973539,1.87063867,121690.0,121680.0,2.22351563]
[1754902973937,1.87063867,121690.0,121680.0,2.55180461]
[1754902974746,1.87063867,121690.0,121680.0,2.22351563]
[1754902975544,1.87063867,121690.0,121680.0,1.92796615]
[1754902975742,1.85063867,121690.0,121680.0,1.92796615]
[1754902975943,1.85063867,121690.0,121680.0,1.59967717]
[1754902976148,1.85063867,121690.0,121680.0,1.92796615]
[1754902976449,1.85063867,121690.0,121680.0,1.59967717]
[1754902976648,1.85063867,121690.0,121680.0,1.92796615]
[1754902977037,1.85063867,121690.0,121680.0,1.93796615]
[1754902978849,1.01259867,121690.0,121680.0,1.93796615]
[1754902979051,1.76059867,121690.0,121680.0,1.93796615]
[1754902980450,1.76059867,121690.0,121680.0,1.60967717]
[1754902980643,1.76059867,121690.0,121680.0,1.93796615]
[1754902981650,2.08888765,121690.0,121680.0,1.93796615]
[1754902983150,2.08888765,121690.0,121680.0,2.2333943]
[1754902984550,2.08888765,121690.0,121680.0,1.90510532]
[1754902984746,2.08888765,121690.0,121680.0,2.2333943]
[1754902985047,2.08888765,121690.0,121680.0,1.93796615]
[1754902985642,2.02997663,121690.0,121680.0,1.24887717]
[1754902985849,2.77789663,121690.0,121680.0,1.19164947]
[1754902986151,2.44960765,121690.0,121680.0,1.42055032]
[1754902986348,2.44960765,121690.0,121680.0,0.92055032]
[1754902986650,1.70168765,121690.0,121680.0,0.91228032]
[1754902986850,2.44960765,121690.0,121680.0,0.91228032]
[1754902987953,2.44960765,121690.0,121680.0,0.67591924]
[1754902988848,2.12131867,121690.0,121680.0,0.67591924]
[1754902989054,2.44960765,121690.0,121680.0,0.66591924]
[1754902989852,2.44960765,121690.0,121680.0,0.96137059]
[1754902990045,2.12131867,121690.0,121680.0,0.96137059]
[1754902990258,2.44960765,121690.0,121680.0,0.96137059]
[1754902991146,2.12131867,121690.0,121680.0,0.96137059]
[1754902991348,2.44960765,121690.0,121680.0,0.96137059]
[1754902991549,2.32960765,121690.0,121680.0,0.96137059]
[1754902991850,2.32960765,121690.0,121680.0,0.66591924]
[1754902993057,2.31960765,121690.0,121680.0,0.66591924]
[1754902995061,2.31960765,121690.0,121680.0,0.50741924]
[1754902995558,2.31960765,121690.0,121680.0,0.60126788]
[1754902998354,2.31960765,121690.0,121680.0,0.50741924]
[1754902998961,2.64789663,121690.0,121680.0,0.50741924]
[1754903000151,2.64789663,121690.0,121680.0,0.80268194]
[1754903001659,2.31960765,121690.0,121680.0,0.80268194]
[1754903002060,1.89997663,121690.0,121680.0,0.80268194]
[1754903002257,1.89997663,121690.0,121670.0,1.14]
[1754903002258,0.0821891,121680.0,121670.0,0.5]
[1754903002453,0.0821959,121670.0,121660.0,1.12447532]
[1754903002658,1.15836488,121670.0,121660.0,1.21447532]
[1754903002958,1.15836488,121670.0,121660.0,1.42817011]
[1754903003160,1.15836488,121670.0,121660.0,1.51036301]
[1754903003665,1.15836488,121670.0,121660.0,1.83865199]
[1754903003863,1.15836488,121670.0,121660.0,1.83965199]
[1754903005462,1.15836488,121670.0,121660.0,1.51136301]
[1754903006159,1.15836488,121670.0,121660.0,1.83965199]
[1754903006365,1.15836488,121670.0,121660.0,1.83865199]
[1754903006766,1.15836488,121670.0,121660.0,1.51036301]
[1754903006963,1.15836488,121670.0,121660.0,1.83865199]
[1754903008777,0.8300759,121670.0,121660.0,1.83865199]
[1754903009075,1.15836488,121670.0,121660.0,1.83865199]
[1754903010176,1.15836488,121670.0,121660.0,1.54338929]
[1754903010877,1.51916488,121670.0,121660.0,1.54338929]
[1754903011079,1.51916488,121670.0,121660.0,1.21510031]
[1754903011279,1.15836488,121670.0,121660.0,1.21510031]
[1754903012169,1.51916488,121670.0,121660.0,1.21510031]
[1754903012369,1.15836488,121670.0,121660.0,1.21510031]
[1754903012780,1.15836488,121670.0,121660.0,1.20510031]
[1754903012977,1.15836488,121670.0,121660.0,1.21510031]
[1754903013781,1.51916488,121670.0,121660.0,1.21510031]
[1754903013979,1.15836488,121670.0,121660.0,1.21510031]
[1754903014577,1.51916488,121670.0,121660.0,1.21510031]
[1754903014775,1.15836488,121670.0,121660.0,1.54338929]
[1754903014980,1.51916488,121670.0,121660.0,1.21510031]
[1754903016081,1.51916488,121670.0,121660.0,1.56952855]
[1754903016279,1.15836488,121670.0,121660.0,1.56952855]
[1754903016481,1.51916488,121670.0,121660.0,1.56952855]
[1754903017083,1.1908759,121670.0,121660.0,1.55952855]
[1754903017282,1.51916488,121670.0,121660.0,1.55952855]
[1754903018272,1.51916488,121670.0,121660.0,1.50018993]
[1754903019084,0.77128488,121670.0,121660.0,1.50018993]
[1754903019286,1.51916488,121670.0,121660.0,1.50018993]
[1754903020175,1.51916488,121670.0,121660.0,1.20510031]
[1754903025778,1.51916488,121670.0,121660.0,1.20269308]
[1754903025980,1.51916488,121670.0,121660.0,1.19921718]
[1754903029788,1.51912488,121670.0,121660.0,1.19921718]
[1754903030892,1.51912488,121670.0,121660.0,1.04061718]
[1754903031589,1.51912488,121670.0,121660.0,1.335841]
[1754903031796,1.51912488,121670.0,121660.0,1.174351]
[1754903031988,1.51912488,121670.0,121660.0,0.9255711]
[1754903033187,0.77128488,121670.0,121660.0,0.9255711]
[1754903033383,0.77128488,121670.0,121660.0,0.7602711]
[1754903033591,0.77128488,121670.0,121660.0,0.91017161]
[1754903033796,1.51912488,121670.0,121660.0,0.68841991]
[1754903034095,1.65542488,121670.0,121660.0,0.87295977]
[1754903034697,1.65542488,121670.0,121660.0,0.85316977]
[1754903034888,1.65542488,121670.0,121660.0,0.69100977]
[1754903035083,1.65542488,121670.0,121660.0,0.63700977]
[1754903035084,1.67336966,121670.0,121660.0,0.63700977]
[1754903035288,2.00165864,121670.0,121660.0,0.41270057]
[1754903035488,2.00165864,121670.0,121660.0,0.50588366]
[1754903035790,1.67336966,121670.0,121660.0,0.48684366]
[1754903035990,1.67336966,121670.0,121660.0,0.29978966]
[1754903036191,0.0822025,121660.0,121650.0,0.63]
[1754903036396,0.77129148,121660.0,121650.0,0.42]
[1754903036593,1.09958046,121660.0,121650.0,0.6328472]
[1754903036896,1.51913148,121660.0,121650.0,0.62546427]
[1754903037194,1.51913148,121660.0,121650.0,0.62556427]
[1754903037398,1.84742046,121660.0,121650.0,0.46359427]
[1754903037698,1.84742046,121660.0,121650.0,0.67556427]
[1754903038200,1.51917148,121660.0,121650.0,0.67556427]
[1754903038496,1.51917148,121660.0,121650.0,0.67656427]
[1754903039195,1.52017148,121660.0,121650.0,0.97063427]
[1754903041300,1.52017148,121660.0,121650.0,0.67556427]
[1754903041495,1.52017148,121660.0,121650.0,0.67656427]
[1754903042100,1.52017148,121660.0,121650.0,0.67556427]
[1754903044302,1.65647148,121660.0,121650.0,0.67556427]
[1754903044499,0.5803025,121660.0,121650.0,0.67556427]
[1754903044795,0.90859148,121660.0,121650.0,0.67556427]
[1754903045001,1.65647148,121660.0,121650.0,0.67556427]
[1754903049101,1.98476046,121660.0,121650.0,0.67556427]
[1754903049800,1.65647148,121660.0,121650.0,0.67556427]
[1754903050005,1.98476046,121660.0,121650.0,0.67556427]
[1754903050801,1.65647148,121660.0,121650.0,0.67556427]
[1754903052105,1.65647148,121660.0,121650.0,0.97079406]
[1754903052700,2.79271148,121660.0,121650.0,0.97079406]
[1754903053903,3.12100046,121660.0,121650.0,0.97079406]
[1754903055211,2.37312046,121660.0,121650.0,0.97079406]
[1754903055411,2.37312046,121660.0,121650.0,0.68299406]
[1754903055610,2.37312046,121660.0,121650.0,0.50141616]
[1754903055810,3.12100046,121660.0,121650.0,0.78928423]
[1754903056107,3.12100046,121660.0,121650.0,0.62922743]
[1754903056310,3.12100046,121660.0,121650.0,0.48613997]
[1754903056503,3.12100046,121660.0,121650.0,0.44291617]
[1754903056704,3.12100046,121660.0,121650.0,0.44301617]
[1754903056904,3.12100046,121660.0,121650.0,0.53874053]
[1754903057105,3.12100046,121660.0,121650.0,0.62094019]
[1754903057311,3.12100046,121660.0,121650.0,0.61107703]
[1754903057711,3.12100046,121660.0,121650.0,0.60691703]
[1754903057907,3.12100046,121660.0,121650.0,0.57381703]
[1754903058208,3.12100046,121660.0,121650.0,0.54114703]
[1754903058410,3.12105931,121660.0,121650.0,0.33467911]
[1754903058712,3.12105931,121660.0,121650.0,0.44287581]
[1754903059509,2.37317931,121660.0,121650.0,0.28240581]
[1754903059713,3.12105931,121660.0,121650.0,0.4059627]
[1754903059916,3.12105931,121660.0,121650.0,0.57355689]
[1754903061012,3.12105931,121660.0,121650.0,0.36435689]
[1754903061214,3.12105931,121660.0,121650.0,0.48354492]
[1754903061610,3.12105931,121660.0,121650.0,0.47972492]
[1754903061811,3.12105931,121660.0,121650.0,0.46498492]
[1754903062012,3.12105931,121660.0,121650.0,0.44144492]
[1754903063614,3.12105931,121660.0,121650.0,0.41910492]
[1754903063812,3.12105931,121660.0,121650.0,0.54930803]
[1754903064016,2.46448135,121660.0,121650.0,0.27880322]
[1754903064217,0.2185093,121650.0,121640.0,0.67]
[1754903064420,0.082216,121640.0,121630.0,1.13]
[1754903064714,1.51942498,121640.0,121630.0,1.00536417]
[1754903064916,1.51942498,121640.0,121630.0,1.11510785]
[1754903065110,1.51952498,121640.0,121630.0,1.11520785]
[1754903066006,1.191236,121640.0,121630.0,1.11520785]
[1754903066206,1.51952498,121640.0,121630.0,1.11520785]
[1754903067111,1.191236,121640.0,121630.0,1.11520785]
[1754903067614,1.51952498,121640.0,121630.0,1.11520785]
[1754903069004,1.191236,121640.0,121630.0,1.11520785]
[1754903069208,1.51952498,121640.0,121630.0,1.11520785]
[1754903070220,0.830956,121640.0,121630.0,1.44349683]
[1754903070416,0.082316,121640.0,121630.0,1.44349683]
[1754903070720,0.830876,121640.0,121630.0,1.44349683]
[1754903070916,0.082216,121640.0,121630.0,1.11510785]
[1754903071119,1.15930498,121640.0,121630.0,1.44339683]
[1754903071614,0.831016,121640.0,121630.0,1.44339683]
[1754903071923,1.15930498,121640.0,121630.0,1.44339683]
[1754903072117,1.15930498,121640.0,121630.0,1.44349683]
[1754903073221,0.831016,121640.0,121630.0,1.44349683]
[1754903073421,1.15930498,121640.0,121630.0,1.44349683]
[1754903075022,1.15930498,121640.0,121630.0,1.80429683]
[1754903076522,1.15922498,121640.0,121630.0,1.80429683]
[1754903076914,0.830936,121640.0,121630.0,1.80429683]
[1754903077121,1.15922498,121640.0,121630.0,1.47600785]
[1754903077320,1.15922498,121640.0,121630.0,1.80429683]
[1754903078613,1.15922498,121640.0,121630.0,1.47600785]
[1754903078818,1.15922498,121640.0,121630.0,1.80429683]
[1754903081432,1.15902498,121640.0,121630.0,1.80429683]
[1754903081624,0.41050498,121640.0,121630.0,1.80429683]
[1754903081928,1.15898498,121640.0,121630.0,1.80429683]
[1754903082129,0.830696,121640.0,121630.0,1.80429683]
[1754903082332,1.15898498,121640.0,121630.0,1.80429683]
[1754903083130,0.41050498,121640.0,121630.0,1.80429683]
[1754903083429,1.15894498,121640.0,121630.0,1.80429683]
[1754903083626,1.29534498,121640.0,121630.0,1.80429683]
[1754903083828,1.15894498,121640.0,121630.0,1.80429683]
[1754903084029,1.15894498,121640.0,121630.0,1.47600785]
[1754903084227,1.15894498,121640.0,121630.0,1.80429683]
[1754903085537,1.15894498,121640.0,121630.0,1.47600785]
[1754903085726,1.15894498,121640.0,121630.0,1.80429683]
[1754903087137,1.15894498,121640.0,121630.0,1.44349683]
[1754903087332,1.15894498,121640.0,121630.0,1.11520785]
[1754903087533,1.15894498,121640.0,121630.0,1.44349683]
[1754903088234,0.41050498,121640.0,121630.0,1.11520785]
[1754903088440,1.15962498,121640.0,121630.0,1.11520785]
[1754903088635,1.52042498,121640.0,121630.0,1.11520785]
[1754903089034,0.77130498,121640.0,121630.0,1.11520785]
[1754903089239,1.52034498,121640.0,121630.0,1.11520785]
[1754903091841,1.52134498,121640.0,121630.0,1.11520785]
[1754903092235,1.52126498,121640.0,121630.0,1.11520785]
[1754903096631,1.1188694,121640.0,121630.0,0.51984368]
[1754903096835,1.1188694,121640.0,121630.0,0.49452173]
[1754903097036,1.8674694,121640.0,121630.0,0.49452173]
[1754903098144,1.8674694,121640.0,121630.0,0.48958957]
[1754903098843,1.1188694,121640.0,121630.0,0.47052524]
[1754903099058,1.8673494,121640.0,121630.0,0.47052524]
[1754903100039,1.8673494,121640.0,121630.0,0.46699369]
[1754903101045,1.1188694,121640.0,121630.0,0.44464369]
[1754903101446,1.8673494,121640.0,121630.0,0.44464369]
[1754903103750,2.0037494,121640.0,121630.0,0.44464369]
[1754903104850,2.0037494,121640.0,121630.0,0.41344369]
[1754903105149,2.0037494,121640.0,121630.0,0.09340314]
[1754903105348,2.0037494,121640.0,121630.0,0.41340314]
[1754903105548,2.0037494,121640.0,121630.0,0.32640314]
[1754903105749,2.0037494,121640.0,121630.0,0.40861631]
[1754903108851,2.0037494,121640.0,121630.0,0.08221317]
[1754903109053,2.0037494,121640.0,121630.0,0.65490106]
[1754903109757,2.0037494,121640.0,121630.0,0.56790106]
[1754903109957,2.0038494,121640.0,121630.0,0.54301106]
[1754903110155,2.0038494,121640.0,121630.0,0.62522423]
[1754903111858,1.34727144,121640.0,121630.0,0.62522423]
[1754903112047,2.0038494,121640.0,121630.0,0.62522423]
[1754903112456,2.0038494,121640.0,121630.0,0.53632423]
[1754903113950,2.0038494,121640.0,121630.0,0.47982423]
[1754903114153,2.0038494,121640.0,121630.0,0.61500106]
[1754903114755,1.67560042,121640.0,121630.0,0.61500106]
[1754903114958,1.67560042,121640.0,121630.0,1.11500106]
[1754903115848,2.0038894,121640.0,121630.0,1.11500106]
[1754903118860,1.1189694,121640.0,121630.0,1.11500106]
[1754903119062,0.79068042,121640.0,121630.0,1.11500106]
[1754903119263,1.53896042,121640.0,121630.0,1.11500106]
[1754903124257,0.79068042,121640.0,121630.0,1.11500106]
[1754903124473,1.53884042,121640.0,121630.0,1.2077595]
[1754903124660,0.79068042,121640.0,121630.0,1.2077595]
[1754903124872,1.21055144,121640.0,121630.0,1.2077595]
[1754903125071,1.53884042,121640.0,121630.0,1.2077595]
[1754903126976,0.79068042,121640.0,121630.0,1.2077595]
[1754903127173,1.53884042,121640.0,121630.0,1.2077595]
[1754903130478,1.09582442,121640.0,121630.0,1.2077595]
[1754903131173,1.17704042,121640.0,121630.0,1.2077595]
[1754903131373,1.17904042,121640.0,121630.0,1.2077595]
[1754903132080,0.43088042,121640.0,121630.0,1.2077595]
[1754903132267,1.17904042,121640.0,121630.0,1.2077595]
[1754903135777,0.43088042,121640.0,121630.0,1.2077595]
[1754903135978,0.41260498,121640.0,121630.0,1.89684848]
[1754903136187,1.16080498,121640.0,121630.0,1.89684848]
[1754903137777,1.16080498,121640.0,121630.0,1.5685595]
[1754903137979,1.16080498,121640.0,121630.0,1.89684848]
[1754903138181,0.832516,121640.0,121630.0,1.5685595]
[1754903138682,0.833516,121640.0,121630.0,1.5685595]
[1754903138981,0.831516,121640.0,121630.0,1.5685595]
[1754903139181,0.832516,121640.0,121630.0,1.5685595]
[1754903146485,0.832396,121640.0,121630.0,1.5685595]
[1754903147480,1.12439143,121640.0,121630.0,1.5685595]
[1754903148678,2.26083143,121640.0,121630.0,1.5685595]
[1754903153095,1.968836,121640.0,121630.0,1.5685595]
[1754903153394,2.26083143,121640.0,121630.0,1.5685595]
[1754903155494,1.968836,121640.0,121630.0,1.5685595]
[1754903155699,2.26083143,121640.0,121630.0,1.5685595]
[1754903156497,2.21647143,121640.0,121630.0,1.5684595]
[1754903158801,2.17851543,121640.0,121630.0,1.5684595]
[1754903159001,2.17851543,121640.0,121630.0,1.5685595]
[1754903159200,2.17829543,121640.0,121630.0,1.5685595]
[1754903159607,2.26051143,121640.0,121630.0,1.5685595]
[1754903160102,2.25910143,121640.0,121630.0,1.5685595]
[1754903160303,2.29563571,121640.0,121630.0,1.5685595]
[1754903160604,2.29481571,121640.0,121630.0,1.5685595]
[1754903161302,2.29399571,121640.0,121630.0,1.5685595]
[1754903161903,2.29376571,121640.0,121630.0,1.5685595]
[1754903162804,2.29294571,121640.0,121630.0,1.5685595]
[1754903163305,2.29212571,121640.0,121630.0,1.5685595]
[1754903163497,2.29212571,121640.0,121630.0,1.89708921]
[1754903163698,2.22612571,121640.0,121630.0,1.89708921]
[1754903164000,2.21512571,121640.0,121630.0,1.89708921]
[1754903164399,1.218656,121640.0,121630.0,1.89708921]
[1754903164699,1.74233626,121640.0,121630.0,1.97931201]
[1754903164905,1.58887626,121640.0,121630.0,1.97931201]
[1754903165296,0.84083626,121640.0,121630.0,1.97931201]
[1754903165497,0.84083626,121640.0,121630.0,1.6507823]
[1754903165698,1.58903626,121640.0,121630.0,1.97931201]
[1754903167399,0.84083626,121640.0,121630.0,1.97931201]
[1754903167701,1.58899626,121640.0,121630.0,1.97931201]
[1754903167911,1.58099626,121640.0,121630.0,1.97931201]
[1754903168209,1.58017626,121640.0,121630.0,1.97931201]
[1754903168399,1.58017626,121640.0,121630.0,1.97931191]
[1754903168905,1.58017626,121640.0,121630.0,1.98342841]
[1754903169205,1.57935626,121640.0,121630.0,1.98342841]
[1754903170007,1.57925626,121640.0,121630.0,1.98342841]
[1754903170401,1.56187626,121640.0,121630.0,1.99342841]
[1754903171007,1.56187626,121640.0,121630.0,2.28887823]